bitfinex/quotes_BTCUSD_20230114
["timestamp","ask_amount","ask_price","bid_price","bid_amount"]
[1673738885797,1.12231907,21056.0,21051.0,1.15178295]
[1673738886041,0.15408763,21056.0,21051.0,1.15178295]
[1673738886542,0.49730669,21057.0,21051.0,1.14078295]
[1673738886543,0.35521907,21057.0,21051.0,1.14078295]
[1673738886786,0.14208763,21057.0,21052.0,0.67741242]
[1673738887045,1.42133042,21058.0,21052.0,0.67741242]
[1673738887046,0.59122636,21058.0,21053.0,1.14068595]
[1673738887305,0.011,21055.0,21054.0,0.26772595]
[1673738887555,0.14208763,21059.0,21054.0,1.346408]
[1673738887833,0.14208763,21059.0,21055.0,0.35396295]
[1673738887834,0.011,21057.0,21055.0,0.35396295]
[1673738888078,0.35521907,21060.0,21056.0,0.949839]
[1673738888333,0.35521907,21060.0,21057.0,0.19072595]
[1673738888601,0.35521907,21060.0,21057.0,0.66562495]
[1673738888602,0.14208763,21059.0,21057.0,0.66562495]
[1673738888857,0.14208763,21059.0,21057.0,0.474899]
[1673738889348,0.14208763,21059.0,21057.0,1.05645795]
[1673738889874,0.35621907,21060.0,21058.0,0.47044101]
[1673738890121,0.14308763,21060.0,21058.0,0.47044101]
[1673738890395,0.001,21059.0,21058.0,0.47044101]
[1673738890647,0.001,21059.0,21058.0,1.42019301]
[1673738890904,0.001,21059.0,21058.0,1.84517801]
[1673738891169,0.00968961,21061.0,21058.0,1.84517801]
[1673738891434,0.00968961,21061.0,21059.0,0.240134]
[1673738891700,0.00149961,21061.0,21060.0,1.269118]
[1673738891955,0.00149961,21061.0,21060.0,0.949666]
[1673738892220,0.00149961,21061.0,21060.0,1.55863755]
[1673738892466,0.01349961,21061.0,21060.0,1.55863755]
[1673738893244,0.00149961,21061.0,21060.0,1.55863755]
[1673738893505,0.01349961,21061.0,21060.0,1.55863755]
[1673738894264,0.01349961,21061.0,21060.0,1.08380455]
[1673738894518,0.01349961,21061.0,21060.0,0.60897155]
[1673738895537,0.16875961,21061.0,21058.0,0.48589839]
[1673738895794,0.71033824,21061.0,21058.0,0.48589839]
[1673738896262,0.92346968,21061.0,21058.0,0.48589839]
[1673738897020,0.92346968,21061.0,21056.0,0.474918]
[1673738897021,0.91146968,21061.0,21056.0,0.474918]
[1673738897303,1.47458068,21061.0,21056.0,0.19072595]
[1673738897859,0.00149961,21061.0,21057.0,0.19922595]
[1673738898073,0.00149961,21061.0,21058.0,1.53695895]
[1673738898329,0.00149961,21061.0,21060.0,0.077]
[1673738898330,0.00249961,21061.0,21060.0,0.077]
[1673738898576,0.00100001,21061.0,21060.0,1.841607]
[1673738898830,0.00100001,21061.0,21060.0,1.850107]
[1673738899078,1e-08,21061.0,21060.0,1.850107]
[1673738899568,1e-08,21061.0,21060.0,2.33401159]
[1673738900320,0.00100001,21061.0,21060.0,1.850107]
[1673738900567,1e-08,21061.0,21060.0,2.45121496]
[1673738900821,0.01545155,21065.0,21062.0,0.1]
[1673738901076,0.01545155,21065.0,21064.0,0.077]
[1673738901322,0.01545155,21065.0,21064.0,0.163069]
[1673738901825,0.01545155,21065.0,21062.0,0.474766]
[1673738902096,0.01545155,21065.0,21062.0,0.474788]
[1673738902345,0.01545155,21065.0,21064.0,0.14]
[1673738902605,0.01545155,21065.0,21064.0,0.303005]
[1673738902856,0.01545155,21065.0,21064.0,0.14006]
[1673738903376,0.01185629,21066.0,21064.0,6e-05]
[1673738903636,0.48656229,21066.0,21064.0,6e-05]
[1673738903897,0.48656229,21066.0,21064.0,0.14006]
[1673738904152,0.48656229,21066.0,21064.0,6e-05]
[1673738904389,0.48656229,21066.0,21065.0,0.00024116]
[1673738904390,0.96126029,21066.0,21065.0,0.00024116]
[1673738904896,1.00146229,21066.0,21064.0,0.14106]
[1673738905160,0.95621029,21066.0,21064.0,0.72634915]
[1673738905372,0.95621029,21066.0,21064.0,0.58534915]
[1673738905925,0.00680629,21066.0,21064.0,0.58534915]
[1673738906178,0.00680629,21066.0,21065.0,0.46995488]
[1673738906432,0.00680629,21066.0,21065.0,1.04167588]
[1673738906679,0.00680629,21066.0,21065.0,1.26416088]
[1673738906936,0.00680629,21066.0,21065.0,1.73888188]
[1673738907453,0.00680629,21066.0,21065.0,1.268927]
[1673738907704,0.00680629,21066.0,21065.0,1.365927]
[1673738908191,0.00680629,21066.0,21065.0,1.374427]
[1673738908915,0.00680629,21066.0,21065.0,1.92496466]
[1673738909474,0.00680629,21066.0,21065.0,1.91646466]
[1673738910709,0.00680629,21066.0,21065.0,1.91652466]
[1673738912154,0.00680629,21066.0,21065.0,1.365987]
[1673738912663,0.00680629,21066.0,21065.0,1.442987]
[1673738913169,0.00680629,21066.0,21065.0,1.542987]
[1673738913421,0.00680629,21066.0,21065.0,2.90204191]
[1673738913687,0.00680629,21066.0,21065.0,2.71131596]
[1673738913941,0.00680629,21066.0,21065.0,2.71125596]
[1673738914452,0.00680629,21066.0,21065.0,2.306148]
[1673738914698,0.00680629,21066.0,21065.0,2.75225596]
[1673738915446,0.00680629,21066.0,21065.0,2.444148]
[1673738915695,0.00680629,21066.0,21065.0,3.22945765]
[1673738915938,0.01651913,21067.0,21066.0,0.1]
[1673738916190,0.01651913,21067.0,21066.0,2.46015965]
[1673738916446,0.01651913,21067.0,21066.0,1.60167427]
[1673738916978,0.01651913,21067.0,21066.0,1.59317427]
[1673738917221,0.01651913,21067.0,21066.0,1.73117427]
[1673738918233,0.00429593,21067.0,21066.0,1.73117427]
[1673738918482,0.00429593,21067.0,21066.0,1.80469233]
[1673738918986,0.00429593,21067.0,21066.0,1.80475233]
[1673738921577,0.63069193,21067.0,21066.0,0.13806]
[1673738921798,0.84479393,21067.0,21066.0,0.13806]
[1673738922240,0.83268393,21067.0,21066.0,0.13806]
[1673738922459,0.83268393,21067.0,21066.0,6e-05]
[1673738922657,0.76828393,21067.0,21066.0,0.00606]
[1673738922912,0.75628393,21067.0,21066.0,6e-05]
[1673738923376,0.76828393,21067.0,21066.0,0.01006]
[1673738923819,0.78028393,21067.0,21066.0,0.01606]
[1673738924035,0.75628393,21067.0,21065.0,6e-05]
[1673738924335,0.0764,21066.0,21065.0,6e-05]
[1673738924559,0.121652,21066.0,21065.0,6e-05]
[1673738924774,0.59579,21066.0,21065.0,6e-05]
[1673738925233,0.00429593,21067.0,21065.0,0.50230979]
[1673738925418,0.01729593,21067.0,21066.0,0.47661724]
[1673738926122,0.00429593,21067.0,21066.0,0.47661724]
[1673738926566,0.00529593,21067.0,21066.0,1.09031524]
[1673738926781,0.00429593,21067.0,21066.0,0.95131524]
[1673738927005,0.00529593,21067.0,21066.0,1.28104119]
[1673738927234,0.00529593,21067.0,21066.0,1.89299824]
[1673738927679,0.00529593,21067.0,21066.0,1.98390695]
[1673738927964,0.01651913,21069.0,21067.0,0.10910626]
[1673738928205,0.01651913,21069.0,21068.0,1.672379]
[1673738928423,1e-08,21070.0,21069.0,0.1]
[1673738928638,1e-08,21070.0,21069.0,1.454195]
[1673738928821,1e-08,21070.0,21069.0,1.277195]
[1673738929483,0.00100001,21070.0,21069.0,1.415195]
[1673738929940,1e-08,21070.0,21069.0,1.277195]
[1673738930161,1e-08,21070.0,21069.0,1.415195]
[1673738930162,0.00100001,21070.0,21069.0,1.415195]
[1673738930368,0.00100001,21070.0,21069.0,1.277195]
[1673738930964,0.00100001,21070.0,21069.0,1.93214594]
[1673738931206,0.01658858,21074.0,21070.0,0.70669581]
[1673738931207,0.01249293,21074.0,21070.0,0.70669581]
[1673738931440,0.05667694,21075.0,21071.0,0.19072595]
[1673738931738,0.05667694,21075.0,21072.0,0.19072595]
[1673738932506,0.05667694,21075.0,21071.0,0.474582]
[1673738933031,0.077,21075.0,21072.0,0.14]
[1673738933289,0.045252,21074.0,21072.0,0.14]
[1673738933538,0.077,21075.0,21073.0,0.52150105]
[1673738933973,0.045252,21074.0,21073.0,0.52150105]
[1673738934453,0.045252,21074.0,21071.0,0.613642]
[1673738934701,0.077,21075.0,21071.0,0.474642]
[1673738934963,0.077,21075.0,21073.0,0.65755277]
[1673738935228,0.045252,21074.0,21073.0,0.51755277]
[1673738935563,0.077,21075.0,21071.0,1.15308526]
[1673738935767,0.077,21075.0,21071.0,1.01408526]
[1673738936017,0.077,21075.0,21073.0,0.141]
[1673738936297,0.077,21075.0,21071.0,1.01408526]
[1673738936547,0.077,21075.0,21072.0,0.54419508]
[1673738936796,0.077,21075.0,21073.0,0.14]
[1673738937315,1.13693195,21077.0,21073.0,0.14]
[1673738937567,1.13693195,21077.0,21073.0,0.33072595]
[1673738937568,0.045252,21076.0,21073.0,0.33072595]
[1673738937831,1.13693195,21077.0,21072.0,1.01875108]
[1673738938083,0.045252,21076.0,21073.0,0.141]
[1673738938347,1.13692895,21077.0,21073.0,0.141]
[1673738938596,0.045252,21076.0,21073.0,0.76204602]
[1673738938850,1.13693295,21077.0,21073.0,0.57132007]
[1673738939113,0.040269,21076.0,21073.0,0.85704602]
[1673738939426,1.13693295,21077.0,21073.0,1.14086007]
[1673738939664,1.13693295,21077.0,21073.0,1.33158602]
[1673738940151,0.035269,21076.0,21073.0,1.14086007]
[1673738940403,1.13693295,21077.0,21073.0,1.14086007]
[1673738940715,5.25097438,21078.0,21073.0,1.71112602]
[1673738940901,5.25097438,21078.0,21074.0,0.51010195]
[1673738940902,4.65817438,21078.0,21074.0,0.51010195]
[1673738941152,4.65817438,21078.0,21075.0,0.48430539]
[1673738941153,4.20903565,21078.0,21075.0,0.48430539]
[1673738941413,4.20903565,21078.0,21075.0,0.95879839]
[1673738942165,4.29784565,21078.0,21073.0,0.474582]
[1673738942424,0.035269,21077.0,21075.0,0.139]
[1673738942678,0.474473,21076.0,21075.0,0.139]
[1673738942929,0.509742,21076.0,21075.0,0.139]
[1673738943443,0.509742,21076.0,21073.0,6e-05]
[1673738943444,1.22361173,21076.0,21073.0,6e-05]
[1673738943698,0.1251,21074.0,21073.0,6e-05]
[1673738944238,0.100299,21074.0,21073.0,6e-05]
[1673738944760,0.100299,21074.0,21073.0,0.03006]
[1673738944761,0.574817,21074.0,21073.0,0.03006]
[1673738945003,1.100217,21074.0,21073.0,0.03006]
[1673738945255,1.101217,21074.0,21073.0,0.17006]
[1673738945508,1.45543607,21074.0,21073.0,6e-05]
[1673738945767,2.18847628,21074.0,21073.0,6e-05]
[1673738946029,0.1,21073.0,21067.0,0.00910626]
[1673738946290,0.13741,21068.0,21067.0,0.00910626]
[1673738946545,1.121985,21068.0,21067.0,0.00910626]
[1673738947581,0.44913873,21069.0,21067.0,0.48121313]
[1673738947821,0.001,21068.0,21067.0,0.62009905]
[1673738948621,0.001,21068.0,21067.0,0.75909905]
[1673738948622,0.002,21068.0,21067.0,0.75909905]
[1673738948872,0.002,21068.0,21067.0,1.23377505]
[1673738949403,0.44913873,21072.0,21067.0,0.95834418]
[1673738949654,0.001,21068.0,21067.0,1.72165938]
[1673738949927,2.07539797,21076.0,21068.0,0.00171368]
[1673738950187,1.13283873,21076.0,21070.0,0.949198]
[1673738950428,1.12283873,21076.0,21070.0,0.949198]
[1673738950727,0.001,21072.0,21070.0,0.949198]
[1673738951026,1.12283873,21076.0,21070.0,0.949198]
[1673738951277,1.12283873,21076.0,21071.0,0.19072595]
[1673738951494,1.12283873,21076.0,21072.0,0.52086515]
[1673738951735,1.12283873,21076.0,21072.0,0.7115911]
[1673738951736,1.26468597,21076.0,21072.0,0.7115911]
[1673738951994,0.0766,21073.0,21069.0,1.0723082]
[1673738952244,0.076,21072.0,21069.0,0.5976912]
[1673738952765,0.076,21072.0,21070.0,0.138]
[1673738953027,0.076,21072.0,21069.0,0.5976912]
[1673738953288,0.0758,21070.0,21069.0,0.138]
[1673738953572,0.0758,21070.0,21068.0,0.00171368]
[1673738953781,0.0758,21070.0,21069.0,0.138]
[1673738954060,0.035269,21069.0,21068.0,0.00171368]
[1673738954305,0.0758,21070.0,21068.0,0.00171368]
[1673738954553,0.0458,21070.0,21068.0,0.00171368]
[1673738954812,0.0766,21069.0,21068.0,0.00171368]
[1673738955058,0.55123,21069.0,21068.0,0.00171368]
[1673738955823,0.001,21070.0,21069.0,0.53008207]
[1673738956039,0.001,21070.0,21069.0,1.04018402]
[1673738956330,0.001,21070.0,21069.0,0.84945807]
[1673738956573,0.6963,21072.0,21069.0,0.84945807]
[1673738956823,0.6963,21072.0,21070.0,0.17298]
[1673738957072,0.6963,21072.0,21069.0,0.66808207]
[1673738957320,0.6963,21072.0,21070.0,0.00097622]
[1673738957579,0.6963,21072.0,21071.0,0.319376]
[1673738957580,0.61492,21072.0,21071.0,0.319376]
[1673738957831,0.61492,21072.0,21070.0,0.00097622]
[1673738958104,0.61492,21072.0,21070.0,1.01524769]
[1673738958352,0.61492,21072.0,21071.0,0.319376]
[1673738958607,0.61592,21072.0,21071.0,0.419376]
[1673738958859,0.44913873,21076.0,21073.0,0.647457]
[1673738959154,0.01632411,21077.0,21074.0,0.19072595]
[1673738959402,0.15817135,21077.0,21074.0,1.29800744]
[1673738959644,0.01632411,21077.0,21074.0,1.77252544]
[1673738960169,0.001,21076.0,21074.0,1.77252544]
[1673738960415,0.001,21076.0,21075.0,0.319376]
[1673738960661,0.001,21076.0,21075.0,0.793871]
[1673738960916,0.001,21076.0,21075.0,0.474495]
[1673738961160,0.01132411,21077.0,21075.0,0.474495]
[1673738961411,0.01232411,21077.0,21075.0,0.474495]
[1673738961935,0.001,21076.0,21075.0,0.138]
[1673738962191,0.15526,21076.0,21072.0,1.2379985]
[1673738962443,1.104217,21076.0,21072.0,1.2379985]
[1673738962680,1.230317,21076.0,21072.0,1.2379985]
[1673738963439,1.230317,21076.0,21073.0,0.61560701]
[1673738963908,1.231317,21076.0,21073.0,0.61560701]
[1673738964167,0.949957,21076.0,21072.0,0.75192]
[1673738964414,0.475484,21076.0,21073.0,0.52349357]
[1673738964667,0.476484,21076.0,21073.0,0.66149357]
[1673738965685,0.002,21076.0,21074.0,0.1085]
[1673738965934,0.002,21076.0,21073.0,0.612539]
[1673738966190,0.14384724,21076.0,21073.0,0.138]
[1673738966438,0.35661811,21076.0,21073.0,0.138]
[1673738966696,0.14184724,21075.0,21073.0,0.138]
[1673738967231,0.82911811,21075.0,21073.0,0.138]
[1673738967491,0.17711624,21074.0,21073.0,0.138]
[1673738967753,1.09088324,21074.0,21072.0,0.61392]
[1673738968280,0.17711624,21073.0,21072.0,0.61392]
[1673738968532,1.12619624,21073.0,21072.0,0.61392]
[1673738969022,0.94908,21073.0,21072.0,0.61392]
[1673738969527,1.09092724,21073.0,21072.0,0.61392]
[1673738969772,1.12619624,21073.0,21072.0,0.61392]
[1673738970023,1.09092724,21073.0,21072.0,0.61392]
[1673738970315,0.95008,21073.0,21072.0,0.75392]
[1673738971033,1.09192724,21073.0,21072.0,0.75392]
[1673738971308,1.59275017,21073.0,21072.0,0.75392]
[1673738971543,2.17677593,21073.0,21072.0,0.75392]
[1673738972292,1.82157476,21073.0,21072.0,0.75392]
[1673738972581,1.80146083,21073.0,21072.0,0.75392]
[1673738972819,2.10142543,21073.0,21072.0,0.75392]
[1673738973081,2.37308898,21073.0,21072.0,0.75392]
[1673738973348,1.5622339,21073.0,21072.0,0.75392]
[1673738973871,1.4622339,21073.0,21072.0,0.75392]
[1673738974669,1.4822339,21073.0,21072.0,0.61392]
[1673738974926,1.82109494,21073.0,21072.0,0.61392]
[1673738975176,1.67912127,21073.0,21072.0,0.61392]
[1673738975468,1.64385227,21073.0,21069.0,0.53447123]
[1673738975724,0.14196998,21071.0,21069.0,0.53447123]
[1673738975979,0.14196998,21071.0,21065.0,0.474704]
[1673738976248,0.035269,21070.0,21067.0,0.61642612]
[1673738976539,1.30410211,21071.0,21069.0,0.4737747]
[1673738976540,0.61655498,21071.0,21069.0,0.4737747]
[1673738976801,1.30510911,21071.0,21069.0,0.14]
[1673738977052,1.33940411,21070.0,21069.0,0.14]
[1673738977307,1.55435498,21070.0,21069.0,0.14]
[1673738977574,1.51708598,21070.0,21065.0,0.60085499]
[1673738977875,0.1255,21068.0,21065.0,0.60085499]
[1673738978157,0.600159,21068.0,21065.0,0.60085499]
[1673738978657,0.600159,21068.0,21066.0,0.51815264]
[1673738978922,0.1255,21068.0,21066.0,0.51815264]
[1673738979212,1.05084673,21070.0,21069.0,0.139]
[1673738979469,0.035269,21069.0,21067.0,0.50510622]
[1673738979715,0.74267998,21070.0,21067.0,0.50510622]
[1673738979971,0.002,21068.0,21067.0,0.69583217]
[1673738980226,0.002,21068.0,21067.0,0.50510622]
[1673738980470,0.002,21068.0,21067.0,1.29915822]
[1673738980732,0.14196998,21072.0,21068.0,0.173032]
[1673738980972,0.002,21070.0,21069.0,0.66535395]
[1673738981229,0.002,21070.0,21069.0,0.474628]
[1673738981496,0.002,21070.0,21069.0,1.268634]
[1673738981794,0.35491911,21073.0,21069.0,1.268634]
[1673738982026,0.14196998,21073.0,21069.0,1.13998395]
[1673738982509,0.42590822,21073.0,21070.0,0.59369676]
[1673738982751,0.14196998,21072.0,21070.0,0.59369676]
[1673738983007,0.35491911,21073.0,21070.0,0.59369676]
[1673738983263,0.35262911,21073.0,21070.0,0.59369676]
[1673738983503,0.14196998,21073.0,21070.0,0.73269676]
[1673738983750,0.14196998,21073.0,21070.0,0.92342271]
[1673738984003,0.14196998,21073.0,21070.0,1.20730276]
[1673738985034,0.14196998,21073.0,21071.0,0.59477304]
[1673738985308,0.14196998,21073.0,21071.0,0.59379686]
[1673738985823,0.01609916,21073.0,21071.0,0.59379686]
[1673738986606,0.01609916,21073.0,21071.0,0.73279686]
[1673738987097,0.474519,21074.0,21071.0,0.73279686]
[1673738987600,0.75345724,21074.0,21071.0,0.73279686]
[1673738987847,0.41003824,21073.0,21071.0,0.139]
[1673738988097,0.47446724,21072.0,21071.0,0.139]
[1673738988596,0.47217724,21072.0,21070.0,0.65416953]
[1673738988853,0.9555678,21073.0,21070.0,0.65416953]
[1673738988854,1.71406004,21073.0,21070.0,0.65416953]
[1673738989115,1.71406004,21073.0,21071.0,0.139]
[1673738989116,1.71407804,21073.0,21071.0,0.139]
[1673738989389,0.032976,21072.0,21070.0,0.65416953]
[1673738989661,1.71407804,21073.0,21070.0,0.65416953]
[1673738989662,1.71408104,21073.0,21070.0,0.139]
[1673738989887,1.71406004,21073.0,21070.0,0.139]
[1673738990119,0.032976,21072.0,21070.0,0.139]
[1673738990361,1.71406004,21073.0,21070.0,0.139]
[1673738990620,1.71406004,21073.0,21069.0,0.66353545]
[1673738990621,1.71406004,21073.0,21071.0,4.0]
[1673738990864,0.40913824,21072.0,21071.0,4.139]
[1673738991125,0.88370124,21072.0,21071.0,4.0]
[1673738991631,1.7481363,21072.0,21071.0,4.0]
[1673738991940,1.35826424,21072.0,21071.0,4.139]
[1673738992128,1.35826424,21072.0,21071.0,4.0]
[1673738992373,1.5712849,21072.0,21071.0,4.139]
[1673738992866,1.074326,21072.0,21071.0,4.139]
[1673738993121,1.5712849,21072.0,21071.0,4.139]
[1673738993374,1.28734666,21072.0,21071.0,4.139]
[1673738993643,1.069326,21072.0,21071.0,4.139]
[1673738993905,0.474563,21072.0,21071.0,4.139]
[1673738994417,1.0976179,21073.0,21071.0,4.78798837]
[1673738994662,0.600659,21073.0,21071.0,4.78798837]
[1673738995195,0.33912066,21073.0,21071.0,4.78798837]
[1673738995696,0.26810117,21073.0,21072.0,0.63461876]
[1673738995971,0.48112183,21073.0,21072.0,0.63461876]
[1673738996198,0.26810117,21073.0,21072.0,0.63461876]
[1673738996457,0.48112183,21073.0,21072.0,0.63461876]
[1673738996709,0.26810117,21073.0,21072.0,0.63461876]
[1673738996959,0.21810117,21073.0,21072.0,0.63461876]
[1673738997209,0.69264117,21073.0,21072.0,0.63461876]
[1673738997486,0.69264117,21073.0,21072.0,0.139]
[1673738997487,1.0475989,21073.0,21072.0,0.139]
[1673738997740,0.83457824,21073.0,21072.0,0.139]
[1673738997989,0.90066649,21073.0,21072.0,0.139]
[1673738998788,0.85770308,21073.0,21072.0,0.139]
[1673738999035,0.71569248,21073.0,21072.0,0.139]
[1673738999286,0.78661483,21073.0,21072.0,0.139]
[1673738999532,0.85770536,21073.0,21072.0,0.139]
[1673739000544,0.99963209,21073.0,21072.0,0.139]
[1673739000791,1.26115483,21073.0,21072.0,0.139]
[1673739001294,1.29611985,21073.0,21072.0,0.139]
[1673739001533,0.82157985,21073.0,21072.0,0.139]
[1673739001781,1.17588265,21073.0,21072.0,0.139]
[1673739002048,0.89194441,21073.0,21072.0,0.139]
[1673739002308,1.36648441,21073.0,21072.0,0.139]
[1673739002813,1.31156161,21073.0,21072.0,0.139]
[1673739003323,1.01156161,21073.0,21072.0,0.139]
[1673739004129,1.65113622,21073.0,21072.0,0.139]
[1673739004386,1.04453761,21073.0,21072.0,0.15890591]
[1673739004703,1.01156161,21073.0,21072.0,0.15890591]
[1673739004923,1.31156161,21073.0,21072.0,0.15890591]
[1673739005149,1.01156161,21073.0,21072.0,0.15890591]
[1673739005413,1.31156161,21073.0,21072.0,0.15890591]
[1673739005922,0.98404502,21073.0,21072.0,0.15890591]
[1673739006190,1.33946957,21073.0,21072.0,0.15890591]
[1673739006680,1.33946957,21073.0,21072.0,0.77920583]
[1673739006681,0.86492957,21073.0,21072.0,0.77920583]
[1673739006938,0.28440657,21073.0,21072.0,0.77920583]
[1673739007191,0.21329452,21073.0,21072.0,0.77920583]
[1673739007441,0.67482372,21073.0,21072.0,0.77920583]
[1673739008209,0.21328366,21073.0,21072.0,0.77920583]
[1673739008981,0.35547014,21073.0,21072.0,0.77920583]
[1673739009231,0.35547014,21073.0,21072.0,1.09859983]
[1673739009495,0.21328366,21073.0,21072.0,0.77920583]
[1673739009746,0.1421718,21073.0,21072.0,1.10856736]
[1673739010018,0.1421718,21074.0,21072.0,1.10856736]
[1673739010270,0.1421718,21074.0,21073.0,0.17517]
[1673739010512,0.35545546,21074.0,21073.0,0.17517]
[1673739010783,0.1421718,21074.0,21072.0,0.25890591]
[1673739011084,0.1421718,21074.0,21073.0,0.47454]
[1673739011312,0.35545546,21075.0,21073.0,1.27729677]
[1673739011571,0.1421718,21075.0,21073.0,0.95790277]
[1673739011830,0.10013408,21075.0,21073.0,0.95790277]
[1673739012383,0.001,21074.0,21073.0,1.43244277]
[1673739012628,0.31341774,21075.0,21073.0,1.43244277]
[1673739012629,0.10013408,21075.0,21073.0,1.43244277]
[1673739012863,0.001,21075.0,21074.0,0.319394]
[1673739013134,0.64083112,21075.0,21073.0,0.62336277]
[1673739013391,0.49855568,21075.0,21073.0,0.62336277]
[1673739013642,0.21314911,21074.0,21073.0,0.62336277]
[1673739014180,0.97208311,21074.0,21073.0,0.14]
[1673739014675,0.68767654,21074.0,21073.0,0.14]
[1673739014929,0.21315854,21074.0,21073.0,0.14]
[1673739015178,0.21315854,21074.0,21073.0,0.78239552]
[1673739015489,0.75991257,21075.0,21074.0,0.66241672]
[1673739015490,0.68866454,21075.0,21074.0,0.66241672]
[1673739015744,0.76425354,21076.0,21074.0,0.66241672]
[1673739015997,0.28975854,21076.0,21074.0,0.66241672]
[1673739016324,0.76423154,21076.0,21074.0,0.66241672]
[1673739016560,1.04863811,21076.0,21074.0,0.66241672]
[1673739016817,0.001,21075.0,21074.0,0.76741672]
[1673739017073,1.04863811,21076.0,21074.0,0.66241672]
[1673739017327,0.76423154,21076.0,21074.0,0.69541672]
[1673739018116,0.551073,21076.0,21074.0,0.69541672]
[1673739018358,0.76423154,21076.0,21074.0,0.69541672]
[1673739018866,0.21315854,21075.0,21074.0,0.69541672]
[1673739019118,1.30995257,21076.0,21074.0,0.69541672]
[1673739019875,0.551073,21076.0,21074.0,0.69541672]
[1673739021532,0.01132411,21077.0,21075.0,0.63227592]
[1673739021812,0.14203276,21076.0,21075.0,0.63227592]
[1673739022071,0.01132411,21077.0,21075.0,0.74181995]
[1673739022323,0.01132411,21077.0,21076.0,0.51011995]
[1673739022569,0.01132411,21077.0,21076.0,1.44444]
[1673739022822,0.01132411,21077.0,21076.0,1.36834]
[1673739023326,0.01132411,21077.0,21076.0,1.50634]
[1673739024104,0.01132411,21077.0,21076.0,2.17444556]
[1673739024343,0.01132411,21077.0,21076.0,1.36834]
[1673739024601,0.01132411,21077.0,21076.0,1.50634]
[1673739025106,0.6588333,21082.0,21077.0,0.52199312]
[1673739025344,0.30340875,21082.0,21078.0,0.36578295]
[1673739025617,0.30340875,21082.0,21079.0,0.19072595]
[1673739025871,0.850845,21087.0,21079.0,0.19072595]
[1673739026112,0.0766,21084.0,21080.0,0.19072595]
[1673739026390,0.507296,21083.0,21077.0,0.63275809]
[1673739026663,0.948635,21083.0,21078.0,0.57954933]
[1673739026908,0.959535,21083.0,21078.0,0.57954933]
[1673739027166,0.959535,21083.0,21078.0,0.77027528]
[1673739027421,0.0766,21079.0,21077.0,0.139]
[1673739027726,0.109576,21078.0,21076.0,0.48648685]
[1673739027972,0.032976,21077.0,21076.0,0.48648685]
[1673739028208,1.025476,21078.0,21076.0,0.48648685]
[1673739028723,1.025428,21079.0,21076.0,0.48648685]
[1673739028969,1.025428,21079.0,21077.0,0.52089295]
[1673739029222,1.025428,21079.0,21076.0,0.138]
[1673739029484,1.025428,21079.0,21076.0,0.59049904]
[1673739029745,0.027981,21078.0,21076.0,0.59049904]
[1673739030011,1.12401582,21078.0,21072.0,0.01990591]
[1673739030298,0.0766,21073.0,21072.0,0.01990591]
[1673739030551,0.579121,21073.0,21072.0,0.01990591]
[1673739031052,0.579121,21073.0,21072.0,0.15790591]
[1673739031305,0.47454,21073.0,21072.0,0.65088683]
[1673739031824,0.474498,21075.0,21073.0,0.66163687]
[1673739031826,0.55108,21076.0,21074.0,0.54805603]
[1673739032061,0.28928322,21077.0,21074.0,0.19072595]
[1673739032323,0.027981,21076.0,21074.0,0.76887927]
[1673739032829,0.027981,21076.0,21074.0,0.57815332]
[1673739033087,0.0766,21077.0,21074.0,0.57815332]
[1673739033605,0.0776,21077.0,21074.0,0.68315332]
[1673739033850,0.027981,21076.0,21073.0,0.474531]
[1673739034120,0.29028322,21077.0,21074.0,0.105]
[1673739034384,0.0716,21075.0,21074.0,0.105]
[1673739034634,1.02059,21075.0,21074.0,0.105]
[1673739034888,1.348571,21075.0,21074.0,0.105]
[1673739035430,1.5666146,21075.0,21074.0,0.105]
[1673739035682,2.16297479,21075.0,21074.0,0.105]
[1673739035917,2.06305721,21075.0,21074.0,0.105]
[1673739036179,2.06305721,21075.0,21072.0,0.01990591]
[1673739036447,2.06305721,21075.0,21074.0,0.14]
[1673739036448,1.96447621,21075.0,21074.0,0.14]
[1673739036738,1.78501628,21075.0,21074.0,0.14]
[1673739036998,2.06875087,21075.0,21074.0,0.14]
[1673739037279,2.06775087,21075.0,21072.0,0.01990591]
[1673739037533,0.0766,21073.0,21072.0,0.01990591]
[1673739037779,1.053661,21073.0,21072.0,0.01990591]
[1673739038295,1.02568,21073.0,21072.0,0.01990591]
[1673739038544,1.053661,21073.0,21072.0,0.01990591]
[1673739039051,0.97118,21073.0,21072.0,0.01990591]
[1673739039384,0.999161,21073.0,21072.0,0.02590591]
[1673739039602,0.97118,21073.0,21072.0,0.4985322]
[1673739039830,0.977061,21073.0,21072.0,0.4985322]
[1673739040082,0.94908,21073.0,21072.0,0.5315322]
[1673739040576,0.47454,21073.0,21072.0,0.5315322]
[1673739040822,0.47452,21074.0,21072.0,0.5315322]
[1673739041568,0.027981,21073.0,21072.0,0.5315322]
[1673739041823,0.47452,21074.0,21072.0,0.4985322]
[1673739042072,0.48652,21074.0,21072.0,0.4985322]
[1673739042324,0.949038,21074.0,21072.0,0.4935322]
[1673739042579,0.027981,21073.0,21072.0,0.5265322]
[1673739042830,0.14186638,21074.0,21072.0,0.68425815]
[1673739043094,0.012,21074.0,21073.0,0.63307553]
[1673739043364,0.35466719,21077.0,21073.0,1.27052693]
[1673739043638,0.09872638,21076.0,21073.0,0.66734988]
[1673739043884,0.31152719,21076.0,21073.0,0.49438587]
[1673739044136,0.09872638,21076.0,21073.0,0.49438587]
[1673739044860,0.09872638,21076.0,21073.0,0.63388587]
[1673739045146,0.31152719,21076.0,21074.0,0.47189869]
[1673739045658,0.21280081,21076.0,21074.0,0.47189869]
[1673739045918,0.24078181,21075.0,21074.0,0.47189869]
[1673739046418,0.24078181,21075.0,21074.0,0.61189869]
[1673739046673,0.21280081,21076.0,21074.0,0.47189869]
[1673739046922,0.21280081,21076.0,21074.0,0.61089869]
[1673739047687,0.68726681,21077.0,21074.0,0.61089869]
[1673739047951,0.21280081,21076.0,21074.0,0.47189869]
[1673739048203,0.027981,21075.0,21074.0,0.14]
[1673739048454,0.28373459,21076.0,21074.0,0.14]
[1673739048705,0.0766,21076.0,21074.0,0.14]
[1673739048957,0.027981,21075.0,21074.0,0.14]
[1673739049231,0.76387781,21076.0,21073.0,0.56791114]